bitfinex-derivatives/quotes_SOLF0:USTF0_20250603
["timestamp","ask_amount","ask_price","bid_price","bid_amount"]
[1748948419720,37.1077,161.52,161.5,0.04215746]
[1748948423211,6.188,161.51,161.5,0.04215746]
[1748948425014,6.188,161.51,161.5,5.746e-05]
[1748948425317,37.28645269,161.52,161.4,6.192]
[1748948425522,6.36645269,161.46,161.4,6.192]
[1748948425717,37.64645269,161.46,161.39,10.67555269]
[1748948426115,0.04473056,161.44,161.41,0.04124656]
[1748948426515,0.04473056,161.44,161.41,6.23304656]
[1748948427617,0.04473056,161.44,161.42,6.1915]
[1748948427826,0.04473056,161.44,161.41,0.04124656]
[1748948428225,0.04473056,161.44,161.41,6.23284656]
[1748948428620,0.04473056,161.44,161.41,0.04124656]
[1748948429121,6.23563056,161.44,161.41,0.04124656]
[1748948429327,0.04473056,161.44,161.41,0.04124656]
[1748948429719,6.23583056,161.44,161.41,0.04124656]
[1748948429919,0.04473056,161.44,161.41,0.04124656]
[1748948430320,0.04473056,161.44,161.41,6.23294656]
[1748948430719,0.04473056,161.44,161.41,0.04124656]
[1748948430921,6.23563056,161.44,161.41,0.04124656]
[1748948431724,6.1912,161.43,161.41,0.04124656]
[1748948432819,6.23563056,161.44,161.41,0.04124656]
[1748948433019,0.04473056,161.44,161.41,0.04124656]
[1748948433730,0.04473056,161.44,161.41,6.23294656]
[1748948434030,0.04473056,161.44,161.41,0.04124656]
[1748948434922,0.04473056,161.44,161.43,6.1911]
[1748948436525,6.41118325,161.44,161.41,0.04124656]
[1748948437329,6.1915,161.42,161.41,0.04124656]
[1748948437625,43.83795269,161.42,161.41,0.04124656]
[1748948443137,0.04473056,161.44,161.41,0.04124656]
[1748948443626,0.04473056,161.44,161.43,6.1911]
[1748948443830,0.04473056,161.44,161.41,0.04124656]
[1748948444035,0.04473056,161.44,161.41,6.23314656]
[1748948444325,31.28,161.43,161.41,6.23314656]
[1748948444731,31.28,161.43,161.42,6.1915]
[1748948445223,31.28,161.43,161.41,6.23304656]
[1748948446332,31.28,161.43,161.41,0.04124656]
[1748948446727,6.36645269,161.42,161.35,2.0627]
[1748948447128,6.36645269,161.42,161.34,0.26951]
[1748948447430,6.1927,161.39,161.35,6.1939]
[1748948447628,37.4727,161.39,161.35,6.1939]
[1748948447831,37.5133592,161.39,161.35,6.23764161]
[1748948448527,31.3206592,161.39,161.37,6.1934]
[1748948448727,31.3206592,161.39,161.35,0.04374161]
[1748948449123,31.3206592,161.39,161.36,6.1937]
[1748948449325,31.3206592,161.39,161.37,6.36645269]
[1748948449535,0.0406592,161.39,161.37,6.36645269]
[1748948449829,15.4,161.41,161.38,5.16098018]
[1748948450027,15.4,161.41,161.4,6.36645269]
[1748948450428,15.4,161.41,161.4,12.55875269]
[1748948453933,15.4,161.41,161.4,6.1923]
[1748948454230,15.4,161.41,161.39,6.23484096]
[1748948454727,15.4,161.41,161.39,0.04224096]
[1748948455338,21.5921,161.41,161.39,0.04224096]
[1748948455526,52.9321,161.41,161.39,0.04224096]
[1748948455831,6.1923,161.4,161.39,0.04224096]
[1748948456443,6.1923,161.4,161.39,0.00158176]
[1748948458738,12.55875269,161.4,161.39,0.00158176]
[1748948459732,6.194,161.36,161.34,0.26951]
[1748948460040,31.34,161.36,161.34,0.26951]
[1748948460242,6.1942,161.35,161.34,0.26951]
[1748948460540,12.56065269,161.35,161.34,0.26951]
[1748948460744,6.1956,161.32,161.28,2.0196]
[1748948460930,31.38195923,161.32,161.28,0.04009146]
[1748948461334,37.74841192,161.32,161.28,0.04009146]
[1748948461935,6.1965,161.29,161.28,0.04009146]
[1748948462142,37.74841192,161.32,161.28,0.04009146]
[1748948462331,6.1965,161.29,161.28,0.04009146]
[1748948464040,6.36645269,161.3,161.28,0.04009146]
[1748948464445,158.24841192,161.32,161.28,0.04009146]
[1748948464641,37.74841192,161.32,161.28,0.04009146]
[1748948464845,31.38195923,161.32,161.28,0.04009146]
[1748948465041,31.38195923,161.32,161.29,6.1965]
[1748948465341,31.38195923,161.32,161.28,0.04009146]
[1748948465844,37.74841192,161.32,161.28,0.04009146]
[1748948466139,6.36645269,161.3,161.28,0.04009146]
[1748948467846,6.1966,161.29,161.28,0.04009146]
[1748948468348,6.36645269,161.3,161.28,0.04009146]
[1748948469438,12.56265269,161.3,161.28,0.04009146]
[1748948469748,6.36645269,161.3,161.28,0.04009146]
[1748948470037,6.1965,161.29,161.28,0.04009146]
[1748948471246,6.36645269,161.3,161.17,8.45475269]
[1748948471448,6.36645269,161.24,161.17,8.45475269]
[1748948471646,31.34,161.23,161.17,2.0883]
[1748948471854,31.34,161.24,161.21,6.36645269]
[1748948472042,31.34,161.27,161.26,6.1977]
[1748948473443,0.04079374,161.28,161.27,6.1973]
[1748948473649,31.36,161.3,161.27,6.36645269]
[1748948473843,15.47,161.31,161.3,6.1962]
[1748948474235,15.47,161.31,161.25,6.36645269]
[1748948474445,15.47,161.31,161.29,6.1966]
[1748948474753,15.47,161.31,161.25,6.36645269]
[1748948474754,15.47,161.31,161.28,0.03951661]
[1748948475645,15.47,161.31,161.29,6.1963]
[1748948477243,15.47,161.31,161.28,0.03951661]
[1748948477244,15.47,161.31,161.3,6.1962]
[1748948479047,15.47,161.31,161.29,6.1964]
[1748948479247,15.47,161.31,161.28,0.03951661]
[1748948479945,15.47,161.31,161.3,6.1962]
[1748948482046,15.47,161.31,161.28,0.03951661]
[1748948482547,15.47,161.31,161.28,6.23631661]
[1748948483143,15.47,161.31,161.28,0.03951661]
[1748948483651,15.47,161.31,161.29,6.1962]
[1748948484446,15.47,161.31,161.3,6.1962]
[1748948487554,15.47,161.31,161.29,6.1964]
[1748948488054,21.6659,161.31,161.28,0.03951661]
[1748948489149,15.47,161.31,161.28,0.03951661]
[1748948489558,15.47,161.31,161.3,6.1962]
[1748948492654,8.87,161.34,161.29,12.35162412]
[1748948492863,8.87,161.34,161.31,10.37282412]
[1748948493359,8.87,161.34,161.33,6.195]
[1748948494458,0.04501711,161.35,161.34,6.1947]
[1748948494669,31.48,161.39,161.33,10.37282412]
[1748948494856,45.52,161.39,161.33,10.37282412]
[1748948495164,45.52,161.39,161.38,6.1931]
[1748948495756,14.04,161.39,161.38,6.1931]
[1748948496954,8.86,161.41,161.4,6.1924]
[1748948503864,577.54,161.45,161.43,6.1908]
[1748948504068,42.02,161.45,161.42,0.03977229]
[1748948504973,6.1911,161.44,161.42,0.03977229]
[1748948505559,42.02,161.45,161.42,0.03977229]
[1748948505560,6.1912,161.43,161.42,0.03977229]
[1748948505760,42.02,161.45,161.42,0.03977229]
[1748948505966,6.35560782,161.44,161.42,0.03977229]
[1748948506162,12.54660782,161.44,161.42,0.03977229]
[1748948506357,42.02,161.45,161.42,0.03977229]
[1748948506358,48.37560782,161.45,161.42,0.03977229]
[1748948507069,42.02,161.45,161.42,0.03977229]
[1748948509765,42.02,161.45,161.42,6.39538011]
[1748948510071,10.54,161.45,161.42,6.39538011]
[1748948510273,31.42,161.48,161.42,6.39538011]
[1748948510765,37.6094,161.48,161.45,6.1901]
[1748948510969,31.42,161.48,161.42,6.39538011]
[1748948511365,31.42,161.48,161.46,6.1899]
[1748948511667,31.42,161.48,161.45,0.04495856]
[1748948512064,37.6095,161.48,161.45,6.23515856]
[1748948512265,31.42,161.48,161.45,0.04495856]
[1748948512768,31.42,161.48,161.47,6.1896]
[1748948513565,31.42,161.48,161.45,0.04495856]
[1748948514876,24.33440782,161.5,161.47,6.1894]
[1748948515677,11.79,161.5,161.45,0.04495856]
[1748948516279,11.79,161.5,161.48,6.1891]
[1748948516771,11.79,161.5,161.49,6.1889]
[1748948520676,11.79,161.5,161.45,0.04495856]
[1748948521065,11.79,161.5,161.48,6.1893]
[1748948522075,11.79,161.5,161.49,6.1889]
[1748948525476,11.79,161.5,161.45,6.40056638]
[1748948525877,11.79,161.5,161.48,6.189]
[1748948526579,11.79,161.5,161.49,6.1889]
[1748948528978,11.79,161.5,161.49,12.54450782]
[1748948530374,31.42,161.54,161.49,6.35560782]
[1748948530577,31.42,161.54,161.5,0.04304302]
[1748948531581,31.42,161.54,161.53,6.1874]
[1748948531885,41.71230782,161.57,161.53,6.1874]
[1748948532076,6.1866,161.55,161.53,6.23081811]
[1748948532282,41.71230782,161.57,161.53,6.23081811]
[1748948532676,6.1865,161.56,161.53,6.23081811]
[1748948533284,13.22,161.58,161.53,0.04341811]
[1748948533485,13.22,161.58,161.53,6.39902593]
[1748948533979,13.22,161.58,161.55,6.35560782]
[1748948534175,13.22,161.58,161.57,6.1858]
[1748948534679,6.1849,161.6,161.57,6.1855]
[1748948534884,6.1849,161.6,161.57,0.04438864]
[1748948535279,6.1854,161.59,161.57,0.04438864]
[1748948535478,8.40200782,161.61,161.57,0.04438864]
[1748948536186,6.35560782,161.59,161.57,0.04438864]
[1748948536581,6.1854,161.58,161.57,0.04438864]
[1748948539380,6.1852,161.59,161.57,0.04438864]
[1748948539576,6.35560782,161.6,161.57,0.04438864]
[1748948539982,6.1853,161.59,161.57,0.04438864]
[1748948540180,6.35560782,161.6,161.57,0.04438864]
[1748948540487,6.1854,161.58,161.57,0.04438864]
[1748948541975,37.83560782,161.58,161.48,43.51578683]
[1748948542190,37.83560782,161.58,161.49,5.16518763]
[1748948542191,6.35560782,161.56,161.49,5.16518763]
[1748948542484,12.54200782,161.56,161.52,6.1875]
[1748948542880,12.54200782,161.56,161.48,37.83560782]
[1748948543080,12.54200782,161.56,161.52,6.1875]
[1748948543081,0.04145949,161.54,161.52,6.1875]
[1748948543790,0.04145949,161.54,161.53,6.1874]
[1748948545385,0.04145949,161.54,161.53,11.35208434]
[1748948545588,31.48,161.58,161.57,6.1858]
[1748948545785,39.7109,161.61,161.57,6.1858]
[1748948545982,33.5264,161.61,161.57,6.1858]
[1748948546182,39.7109,161.61,161.58,6.1854]
[1748948546391,33.5264,161.61,161.54,6.35560782]
[1748948546588,33.5264,161.61,161.58,0.04380716]
[1748948546988,6.35560782,161.6,161.58,0.04380716]
[1748948548291,6.185,161.59,161.58,0.04380716]
[1748948550193,12.54040782,161.6,161.58,0.04380716]
[1748948550493,6.35560782,161.6,161.58,0.04380716]
[1748948550695,6.1851,161.59,161.58,0.04380716]
[1748948551794,6.35560782,161.6,161.58,0.04380716]
[1748948552294,12.54040782,161.6,161.58,0.04380716]
[1748948552996,6.35560782,161.6,161.58,6.22920716]
[1748948553298,6.35560782,161.6,161.58,0.04380716]
[1748948554295,6.1851,161.59,161.58,0.04380716]
[1748948555599,6.1859,161.57,161.49,12.03982821]
[1748948555896,31.48,161.56,161.5,5.16483966]
[1748948556200,31.48,161.56,161.53,6.1871]
[1748948556395,31.48,161.56,161.49,6.35560782]
[1748948556595,0.03993751,161.54,161.51,0.04539745]
[1748948556901,0.03993751,161.54,161.52,5.16759134]
[1748948557094,0.03993751,161.54,161.53,6.1874]
[1748948557399,0.03993751,161.54,161.53,11.35499134]
[1748948560303,0.03993751,161.54,161.53,5.16759134]
[1748948560490,0.03993751,161.54,161.51,0.04539745]
[1748948560491,6.39554533,161.54,161.51,0.04539745]
[1748948560696,0.03993751,161.54,161.51,0.04539745]
[1748948560895,6.39554533,161.54,161.51,0.04539745]
[1748948561195,6.39554533,161.54,161.52,6.1877]
[1748948561392,6.39554533,161.54,161.51,0.04539745]
[1748948561603,6.39554533,161.54,161.52,5.17554263]
[1748948561792,0.03993751,161.54,161.51,0.04539745]
[1748948561998,0.03993751,161.54,161.52,5.17557686]
[1748948562305,0.03993751,161.54,161.52,6.1876]
[1748948562495,0.03993751,161.54,161.51,0.04539745]
[1748948562697,0.03993751,161.54,161.53,6.1874]
[1748948563102,0.03993751,161.54,161.51,0.04539745]
[1748948563297,0.03993751,161.54,161.53,6.1874]
[1748948563797,0.03993751,161.54,161.53,11.36350628]
[1748948564400,0.03993751,161.54,161.53,11.36446781]
[1748948565105,0.03993751,161.54,161.53,5.17706781]
[1748948565901,0.03993751,161.54,161.53,11.36446781]
[1748948566405,0.03993751,161.54,161.53,11.36493104]
[1748948566795,0.03993751,161.54,161.53,5.17753104]
[1748948566998,6.39554533,161.54,161.51,0.04539745]
[1748948567301,6.39554533,161.54,161.52,11.36819796]
[1748948567501,6.39554533,161.54,161.52,6.1877]
[1748948567697,37.87554533,161.54,161.51,0.04539745]
[1748948567901,6.35560782,161.52,161.47,6.1896]
[1748948568108,6.35560782,161.49,161.48,5.18379931]
[1748948568299,6.35560782,161.49,161.48,5.18184354]
[1748948568501,31.48,161.5,161.49,6.1889]
[1748948569303,31.48,161.5,161.48,0.04680245]
[1748948570308,31.48,161.5,161.48,6.23590245]
[1748948570903,31.48,161.5,161.49,6.1889]
[1748948571606,31.48,161.5,161.48,6.23590245]
[1748948571904,31.48,161.5,161.48,0.04680245]
[1748948572705,31.48,161.5,161.49,5.17996219]
[1748948573107,31.48,161.5,161.49,11.36886219]
[1748948573307,0.04147296,161.51,161.49,5.17996219]
[1748948573500,0.04147296,161.51,161.5,11.36846219]
[1748948574304,6.35560782,161.55,161.5,5.17996219]
[1748948574508,31.26,161.56,161.51,5.17996219]
[1748948574706,37.4463,161.56,161.52,5.17996219]
[1748948574903,37.4463,161.56,161.53,5.17996219]
[1748948575103,37.4463,161.56,161.49,5.71131351]
[1748948575406,37.4463,161.56,161.51,0.03920566]
[1748948575407,0.04261191,161.54,161.51,0.03920566]
[1748948575709,6.35560782,161.53,161.51,0.03920566]
[1748948576010,6.1877,161.52,161.51,0.03920566]
[1748948576199,0.04261191,161.54,161.51,0.03920566]
[1748948576200,6.35560782,161.53,161.51,0.03920566]
[1748948576704,37.4477,161.52,161.51,0.03920566]
[1748948576912,31.26,161.52,161.51,0.03920566]
[1748948578506,31.26,161.52,161.51,6.22730566]
[1748948578808,31.26,161.52,161.51,5.22053285]
[1748948580108,31.26,161.52,161.51,6.22730566]
[1748948580316,31.26,161.52,161.51,11.40887136]
[1748948580706,31.26,161.52,161.51,0.03920566]
[1748948581413,31.26,161.52,161.51,6.22730566]
[1748948581606,31.26,161.52,161.51,11.40763345]
[1748948582214,31.26,161.52,161.51,11.40701217]
[1748948582415,0.04261191,161.54,161.53,6.1874]
[1748948582602,0.04261191,161.54,161.53,11.36710651]
[1748948582803,0.04261191,161.54,161.53,6.1874]
[1748948583007,0.04261191,161.54,161.53,11.36575235]
[1748948585219,31.28,161.57,161.56,6.1862]
[1748948585420,31.28,161.58,161.56,6.1862]
[1748948588118,31.28,161.58,161.57,6.1858]
[1748948588618,31.28,161.58,161.55,0.04047589]
[1748948588814,6.35560782,161.57,161.55,0.04047589]
[1748948589019,6.35560782,161.57,161.48,5.70568926]
[1748948589219,6.35560782,161.53,161.49,5.18025964]
[1748948589421,6.35560782,161.53,161.5,5.18025964]
[1748948589628,31.26,161.54,161.51,5.18025964]
[1748948589813,31.26,161.54,161.47,12.06129708]
[1748948590123,0.04693541,161.52,161.51,6.1881]
[1748948590431,31.26,161.6,161.51,17.24154948]
[1748948590625,31.26,161.6,161.57,6.1856]
[1748948590831,31.26,161.6,161.53,6.35560782]
[1748948591023,31.26,161.6,161.54,5.17803274]
[1748948591218,31.26,161.61,161.55,5.17311145]
[1748948591526,31.26,161.61,161.53,6.35560782]
[1748948591527,31.26,161.61,161.56,0.04654817]
[1748948591727,31.26,161.61,161.59,6.1849]
[1748948593021,31.26,161.61,161.56,0.04654817]
[1748948593022,31.26,161.61,161.58,6.1853]
[1748948593719,31.26,161.61,161.56,0.04654817]
[1748948593720,534.68,161.62,161.56,0.04654817]
[1748948593920,565.94,161.62,161.57,5.16897168]
[1748948594128,565.94,161.62,161.58,5.16897168]
[1748948594329,31.26,161.62,161.57,6.35560782]
[1748948594526,31.26,161.62,161.58,5.1670789]
[1748948594724,31.26,161.62,161.57,6.35560782]
[1748948594927,31.26,161.62,161.58,5.16711765]
[1748948595121,31.26,161.62,161.56,0.04654817]
[1748948595424,31.26,161.62,161.57,11.52320278]
[1748948595619,31.26,161.62,161.58,5.16759496]
[1748948595826,13.0,161.61,161.59,11.35249496]
[1748948596026,13.0,161.61,161.59,6.1849]
[1748948596522,13.0,161.61,161.58,6.1854]
[1748948596724,13.0,161.61,161.56,0.04654817]
[1748948596927,19.1843,161.61,161.59,6.185]
[1748948597815,13.0,161.61,161.59,6.185]
[1748948599333,13.0,161.61,161.6,6.1847]
[1748948599531,13.0,161.61,161.58,6.35560782]
[1748948599827,13.0,161.61,161.6,6.35560782]
[1748948600022,37.4822,161.67,161.6,11.51808659]
[1748948600223,536.8153,161.7,161.64,6.35560782]
[1748948600423,568.1153,161.7,161.65,6.22799499]
[1748948600626,568.1153,161.7,161.66,0.03970106]
[1748948600821,574.47090782,161.7,161.66,0.03970106]
[1748948601021,6.1815,161.69,161.66,6.22200106]
[1748948601220,568.1153,161.7,161.66,0.03970106]
[1748948602118,6.1817,161.68,161.66,0.03970106]
[1748948602319,568.1153,161.7,161.66,0.03970106]
[1748948602829,6.1815,161.69,161.66,0.03970106]
[1748948604829,6.1815,161.69,161.66,6.22210106]
[1748948605530,574.2963,161.7,161.66,6.22210106]
[1748948607434,6.1813,161.69,161.66,6.22210106]
[1748948607626,568.1153,161.7,161.67,6.1817]
[1748948607827,565.98,161.7,161.66,0.03970106]
[1748948608030,37.481,161.7,161.66,0.03970106]
[1748948608628,6.1812,161.69,161.66,0.03970106]
[1748948609127,37.481,161.7,161.66,0.03970106]
[1748948609321,37.65560782,161.7,161.66,0.03970106]
[1748948609924,6.1813,161.69,161.66,0.03970106]
[1748948610528,6.1816,161.68,161.66,0.03970106]
[1748948612339,6.1814,161.69,161.66,6.22200106]
[1748948613536,6.1814,161.69,161.66,0.03970106]
[1748948613937,6.1814,161.69,161.66,6.22200106]
[1748948614335,6.1817,161.68,161.66,0.03970106]
[1748948615136,6.35560782,161.69,161.66,0.03970106]
[1748948616439,6.182,161.67,161.66,0.03970106]
[1748948618338,12.53760782,161.67,161.66,0.03970106]
[1748948619139,6.1834,161.64,161.61,6.1841]
[1748948619441,6.35560782,161.65,161.59,6.1848]
[1748948619642,6.1842,161.62,161.59,6.1848]
[1748948620245,6.1842,161.62,161.59,6.23007433]
[1748948620246,6.22867691,161.62,161.59,6.23007433]
[1748948620442,6.22867691,161.62,161.59,0.04527433]
[1748948620643,0.04447691,161.62,161.59,0.04527433]
[1748948620845,6.35560782,161.61,161.59,0.04527433]
[1748948621050,6.1847,161.6,161.59,0.04527433]
[1748948622256,12.54000782,161.61,161.59,0.04527433]
[1748948622759,0.04447691,161.62,161.59,0.04527433]
[1748948623052,0.04447691,161.62,161.59,6.23007433]
[1748948623850,0.04447691,161.62,161.59,0.04527433]
[1748948624647,0.04447691,161.62,161.61,6.1843]
[1748948629056,0.04447691,161.62,161.6,6.1845]
[1748948629254,0.04447691,161.62,161.59,6.40088215]
[1748948629852,0.04447691,161.62,161.59,0.04527433]
[1748948630053,0.04447691,161.62,161.59,6.23007433]
[1748948630250,6.22857691,161.62,161.59,6.23007433]
[1748948631151,0.04447691,161.62,161.59,6.23007433]
[1748948631452,0.04447691,161.62,161.59,0.04527433]
[1748948632147,0.04447691,161.62,161.61,6.1843]
[1748948635257,0.04447691,161.62,161.61,11.36234463]
[1748948638058,0.04447691,161.62,161.61,11.36457211]
[1748948640264,0.04447691,161.62,161.61,5.18027211]
[1748948640471,0.04447691,161.62,161.6,6.1846]
[1748948640661,0.04447691,161.62,161.59,0.04527433]
[1748948640867,0.04447691,161.62,161.6,5.18378045]
[1748948641169,0.04447691,161.62,161.59,0.04527433]
[1748948641170,0.04447691,161.62,161.61,5.18324294]
[1748948641666,0.04447691,161.62,161.61,11.36754294]
[1748948642168,12.76,161.65,161.61,11.36754294]
[1748948642169,12.76,161.65,161.61,5.18324294]
[1748948642360,12.76,161.65,161.64,6.1832]
[1748948644069,12.76,161.65,161.63,0.04592424]
[1748948644561,12.76,161.65,161.63,6.22932424]
[1748948645270,19.11560782,161.65,161.63,0.04592424]
[1748948645571,21.14080782,161.65,161.55,43.41373035]
[1748948645768,12.53920782,161.63,161.56,5.18786426]
[1748948646065,37.71560782,161.63,161.57,5.18786426]
[1748948646265,37.71560782,161.63,161.58,5.18786426]
[1748948646466,0.04487582,161.62,161.61,6.1841]
[1748948647266,0.04487582,161.62,161.59,0.0417226]
[1748948647671,6.22887582,161.62,161.59,6.2265226]
[1748948649166,6.1845,161.61,161.59,0.0417226]
[1748948649774,6.22897582,161.62,161.59,6.2267226]
[1748948649960,0.04487582,161.62,161.59,0.0417226]
[1748948650874,6.1843,161.61,161.59,6.2267226]
[1748948651068,6.1843,161.61,161.59,0.0417226]
[1748948651371,6.22887582,161.62,161.59,0.0417226]
[1748948651570,0.04487582,161.62,161.59,0.0417226]
[1748948651971,6.22897582,161.62,161.59,6.2266226]
[1748948652875,0.04487582,161.62,161.59,0.0417226]
[1748948653467,0.04487582,161.62,161.6,6.1847]
[1748948654070,0.04487582,161.62,161.59,0.0417226]
[1748948654371,0.04487582,161.62,161.61,6.1843]
[1748948654770,0.04487582,161.62,161.6,6.1845]
[1748948654970,0.04487582,161.62,161.59,0.0417226]
[1748948655367,6.22907582,161.62,161.59,6.2264226]
[1748948655574,6.22907582,161.62,161.59,0.0417226]
[1748948655770,6.22907582,161.62,161.59,6.2266226]
[1748948656169,6.22907582,161.62,161.59,0.0417226]
[1748948656170,0.04487582,161.62,161.59,0.0417226]
[1748948656365,6.40048364,161.62,161.59,0.0417226]
[1748948656873,6.1843,161.61,161.59,0.0417226]
[1748948657074,6.40048364,161.62,161.59,0.0417226]
[1748948657274,6.1845,161.61,161.59,0.0417226]
[1748948657477,0.04487582,161.62,161.59,0.0417226]
[1748948657673,0.04487582,161.62,161.6,6.1846]
[1748948657977,0.04487582,161.62,161.59,0.0417226]
[1748948658172,0.04487582,161.62,161.59,6.2265226]
[1748948658579,6.22907582,161.62,161.59,6.2265226]
[1748948658876,0.04487582,161.62,161.59,0.0417226]
[1748948659784,6.1845,161.61,161.59,0.0417226]
[1748948661177,6.22897582,161.62,161.59,6.2268226]
[1748948661779,0.04487582,161.62,161.59,0.0417226]
[1748948662276,0.04487582,161.62,161.59,6.2267226]
[1748948662981,6.22887582,161.62,161.59,6.2267226]
[1748948663380,6.22887582,161.62,161.6,5.21377761]
[1748948663579,6.22887582,161.62,161.59,6.2267226]
[1748948663781,6.22887582,161.62,161.6,5.21386556]
[1748948663976,6.1843,161.61,161.59,0.0417226]
[1748948664583,6.1847,161.6,161.59,0.0417226]
[1748948664778,6.1847,161.6,161.59,5.25673159]
[1748948664969,6.1847,161.6,161.59,0.0417226]
[1748948665881,6.1864,161.56,161.53,5.71364657]
[1748948666078,6.1864,161.56,161.54,5.21578389]
[1748948666279,6.1864,161.56,161.55,5.21578389]
[1748948666672,6.1871,161.54,161.49,36.97364657]
[1748948666873,6.1871,161.54,161.5,5.21793506]
[1748948667078,0.04308534,161.53,161.51,5.21793506]
[1748948667379,0.04308534,161.53,161.52,5.21793506]
[1748948668572,0.04308534,161.53,161.52,11.39936906]
[1748948670879,0.04308534,161.53,161.52,6.1877]
[1748948671085,0.04308534,161.53,161.52,11.39305057]
[1748948671279,0.04308534,161.53,161.52,11.39285532]
[1748948671480,0.04308534,161.53,161.52,6.1877]
[1748948671675,0.04308534,161.53,161.52,11.39124967]
[1748948671880,0.04308534,161.53,161.52,6.1877]
[1748948672189,0.04308534,161.53,161.52,11.39131252]
[1748948672580,0.04308534,161.53,161.52,11.39032443]
[1748948672781,0.04308534,161.53,161.52,6.1877]
[1748948673890,0.04308534,161.53,161.52,11.38845988]
[1748948675090,31.26,161.58,161.56,6.186]
[1748948676190,37.4455,161.58,161.56,6.186]
[1748948676384,31.26,161.58,161.56,6.186]
[1748948676584,37.4455,161.58,161.56,6.186]
[1748948676985,31.26,161.58,161.57,6.1858]
[1748948677487,31.26,161.58,161.56,6.1859]
[1748948677886,31.26,161.58,161.55,0.04205134]
[1748948678085,31.26,161.58,161.56,6.1862]
[1748948678690,0.0390667,161.59,161.55,0.04205134]
[1748948678985,0.0390667,161.59,161.57,6.1856]
[1748948679293,0.0390667,161.59,161.55,12.58395916]
[1748948679485,0.0390667,161.59,161.56,5.19677659]
[1748948679685,0.0390667,161.59,161.55,0.04205134]
[1748948679889,0.0390667,161.59,161.55,6.22845134]
[1748948680081,0.0390667,161.59,161.55,0.04205134]
[1748948680478,6.1856,161.58,161.55,0.04205134]
[1748948680682,0.0390667,161.59,161.55,0.04205134]
[1748948681183,6.186,161.57,161.55,0.04205134]
[1748948681893,0.0390667,161.59,161.55,0.04205134]
[1748948681894,6.1856,161.58,161.55,0.04205134]
[1748948682380,6.1856,161.58,161.55,6.22865134]
[1748948682988,12.73,161.57,161.55,6.22865134]
[1748948683288,12.73,161.57,161.56,6.1862]
[1748948683587,12.73,161.57,161.55,6.22855134]
[1748948684984,43.99,161.57,161.55,0.04205134]
[1748948685386,50.1761,161.57,161.55,0.04205134]
[1748948687291,43.99,161.57,161.55,0.04205134]
[1748948687491,50.34560782,161.57,161.55,0.04205134]
[1748948687886,56.53160782,161.57,161.55,0.04205134]
[1748948689496,50.34560782,161.57,161.55,6.22865134]
[1748948689697,43.99,161.57,161.55,6.22865134]
[1748948689998,43.99,161.57,161.56,6.1862]
[1748948690391,43.99,161.57,161.55,0.04205134]
[1748948690702,43.99,161.57,161.55,6.22845134]
[1748948692097,50.1759,161.57,161.55,6.22845134]
[1748948692496,43.99,161.57,161.55,6.22845134]
[1748948694196,43.99,161.57,161.55,0.04205134]
[1748948695100,50.1759,161.57,161.55,0.04205134]
[1748948698205,43.99,161.57,161.55,6.22855134]
[1748948698395,43.99,161.57,161.55,0.04205134]
[1748948698591,43.99,161.57,161.56,5.2069121]
[1748948699096,43.99,161.57,161.56,11.3931121]
[1748948699699,43.99,161.57,161.55,6.22845134]
[1748948699895,43.99,161.57,161.56,5.20786843]
[1748948700293,43.99,161.57,161.55,0.04205134]
[1748948700494,43.99,161.57,161.56,5.20714755]
[1748948700703,43.99,161.57,161.56,5.20778518]
[1748948701003,43.99,161.57,161.56,11.39398518]
[1748948701997,43.99,161.57,161.56,5.20778518]
[1748948703207,43.99,161.57,161.56,11.39398518]
[1748948704604,43.99,161.57,161.56,5.20778518]
[1748948705101,43.99,161.57,161.55,0.04205134]
[1748948706209,50.1761,161.57,161.55,0.04205134]
[1748948706610,43.99,161.57,161.55,0.04205134]
[1748948707694,50.1758,161.57,161.55,0.04205134]
[1748948707905,43.99,161.57,161.55,6.22855134]
[1748948708105,43.99,161.57,161.56,5.20626391]
[1748948708309,43.99,161.57,161.55,0.04205134]
[1748948710911,12.73,161.57,161.56,11.3923747]
[1748948713708,11.50267622,161.7,161.56,17.26837367]
[1748948713905,31.12,161.64,161.58,6.35560782]